bitfinex/quotes_ETHUSD_20251126
["timestamp","ask_amount","ask_price","bid_price","bid_amount"]
[1764167972081,0.002,2936.9,2935.9,13.62444224]
[1764167972376,0.002,2936.9,2936.1,0.09975]
[1764167972377,0.22,2936.8,2936.1,0.09975]
[1764167972593,0.002,2936.9,2936.2,0.1866]
[1764167972794,0.22,2936.8,2936.2,9.01835701]
[1764167972975,0.22,2936.7,2936.4,0.09975]
[1764167973161,0.22,2936.7,2936.5,0.4681]
[1764167973565,0.22,2936.7,2936.2,9.11810701]
[1764167973749,0.002,2936.9,2936.5,0.4681]
[1764167973952,0.002,2936.9,2936.8,0.4563]
[1764167974146,0.002,2936.9,2936.8,4.58696084]
[1764167974463,0.002,2936.9,2936.8,5.56031484]
[1764167974647,0.002,2936.9,2936.8,5.05506084]
[1764167975489,0.002,2936.9,2936.8,5.56031484]
[1764167976696,0.002,2937.5,2937.2,0.405504]
[1764167976908,1.63114279,2938.5,2937.5,0.405504]
[1764167977110,1.63114279,2938.5,2938.0,10.51890512]
[1764167977294,1.63114279,2938.5,2938.0,1.68714811]
[1764167977604,1.63114279,2938.5,2938.0,10.98700512]
[1764167977982,1.63114279,2938.5,2938.0,10.58150112]
[1764167978188,1.63114279,2938.5,2938.0,5.15342008]
[1764167978397,1.63114279,2938.5,2938.0,6.00914105]
[1764167979213,1.63114279,2938.5,2938.0,15.14665206]
[1764167979505,1.85114279,2938.5,2938.0,15.24640206]
[1764167980009,1.63114279,2938.5,2938.0,15.24640206]
[1764167980506,1.63114279,2938.5,2938.0,6.00914105]
[1764167980672,1.63114279,2938.5,2938.0,5.15342008]
[1764167980871,1.63114279,2938.5,2938.0,5.05367008]
[1764167981502,1.63114279,2938.5,2938.0,4.12927008]
[1764167981706,1.63114279,2938.5,2938.0,3.40367597]
[1764167982506,1.63114279,2938.5,2937.8,0.72559411]
[1764167982707,0.22,2938.2,2937.8,0.72559411]
[1764167982906,0.22,2938.2,2937.8,1.19369411]
[1764167983300,0.22,2938.2,2937.8,0.72559411]
[1764167983499,0.22,2938.2,2937.7,6.80802137]
[1764167984007,0.22,2938.2,2937.7,10.21204492]
[1764167984507,0.22,2938.2,2937.5,14.34261535]
[1764167984815,0.002,2938.4,2938.0,9.29075701]
[1764167985107,0.221,2938.4,2938.0,10.11610112]
[1764167985308,0.002,2938.4,2938.0,10.59110112]
[1764167986379,0.002,2938.4,2938.0,5.16302008]
[1764167987121,0.002,2938.4,2938.0,5.56852408]
[1764167987614,0.002,2938.4,2938.0,5.09352408]
[1764167987813,0.002,2938.4,2938.0,4.68802008]
[1764167988226,0.002,2938.4,2938.0,3.40367597]
[1764167988427,0.7677,2938.1,2937.0,3.40483486]
[1764167988713,0.2238,2938.0,2937.0,6.80966972]
[1764167988911,0.2238,2938.0,2937.0,10.21450458]
[1764167988912,0.41130798,2937.9,2937.0,10.21450458]
[1764167989116,0.1878,2937.9,2937.1,0.72559411]
[1764167989319,0.219,2937.8,2937.1,0.82534411]
[1764167989482,0.219,2937.8,2937.1,0.72559411]
[1764167990399,0.219,2937.8,2937.2,10.21380906]
[1764167990623,0.7048,2937.7,2937.2,6.80920604]
[1764167991035,0.1878,2937.9,2937.2,6.80920604]
[1764167991222,0.219,2937.8,2937.2,10.21380906]
[1764167991811,0.7048,2937.8,2937.2,6.80920604]
[1764167992007,0.4858,2937.8,2937.2,6.80920604]
[1764167992207,0.7048,2937.7,2937.2,6.80920604]
[1764167992508,0.4858,2937.6,2936.9,10.21485237]
[1764167992904,0.219,2937.7,2936.9,13.61980316]
[1764167993102,0.1878,2937.9,2937.0,0.09975]
[1764167993304,0.219,2937.8,2937.0,0.09975]
[1764167993541,0.221,2937.8,2937.0,0.09975]
[1764167993851,0.7068,2937.8,2937.0,0.09975]
[1764167994334,0.219,2937.7,2937.0,0.09975]
[1764167994539,0.219,2937.6,2937.1,10.21415682]
[1764167994717,0.002,2937.8,2937.1,10.21415682]
[1764167994918,0.002,2937.8,2937.2,0.475]
[1764167995108,0.002,2937.8,2937.4,0.09975]
[1764167995442,0.12,2937.7,2937.4,0.09975]
[1764167995641,0.12,2937.7,2937.5,0.475]
[1764167995821,0.12,2937.7,2937.6,0.459]
[1764167996021,0.12,2937.7,2937.4,0.09975]
[1764167996543,0.12,2937.7,2937.4,0.57475]
[1764167996940,0.12,2937.7,2937.5,6.80851062]
[1764167997544,0.12,2937.7,2937.6,0.459]
[1764167997963,0.2897,2937.6,2937.5,3.40425531]
[1764167998625,0.12,2937.7,2937.5,7.26751062]
[1764167999062,0.12,2937.7,2937.6,1.65959411]
[1764167999354,0.12,2937.7,2937.6,2.16484811]
[1764167999757,0.002,2938.4,2938.0,0.09975]
[1764167999923,0.002,2938.4,2938.0,1.03375]
[1764168000125,0.002,2938.4,2938.0,0.934]
[1764168000362,0.002,2938.4,2938.0,1.339504]
[1764168000569,0.002,2938.7,2938.4,0.864504]
[1764168000766,0.002,2938.7,2938.6,0.964254]
[1764168000941,0.002,2938.7,2938.6,5.56782912]
[1764168001125,0.002,2938.7,2938.6,3.40298101]
[1764168001734,0.2993,2938.7,2938.6,3.40298101]
[1764168002136,0.002,2938.7,2938.6,3.40298101]
[1764168002561,0.002,2938.7,2938.6,4.9480927]
[1764168002779,0.002,2938.7,2938.6,5.5228427]
[1764168002928,0.002,2938.7,2938.6,15.48143035]
[1764168003628,0.002,2938.7,2938.6,6.24843681]
[1764168004138,0.002,2938.7,2938.6,15.48143035]
[1764168004555,0.0012,2939.1,2939.0,0.505254]
[1764168004739,0.1878,2941.1,2939.2,0.505254]
[1764168004740,0.31727274,2940.5,2939.2,0.505254]
[1764168005076,0.4858,2940.9,2940.0,0.09975]
[1764168005277,0.4858,2941.7,2940.1,0.405504]
[1764168005486,0.31681619,2941.6,2941.0,0.09975]
[1764168005779,0.31681619,2941.6,2940.9,0.405504]
[1764168005780,0.31681619,2941.5,2940.9,0.405504]
[1764168005980,0.4568,2941.6,2941.0,0.09975]
[1764168006349,0.4568,2941.6,2940.8,0.1834]
[1764168006558,0.4568,2941.6,2941.1,0.09975]
[1764168006861,0.6758,2941.9,2941.2,3.3999728]
[1764168007056,0.77305867,2941.8,2941.2,3.3999728]
[1764168007272,0.1878,2943.0,2941.3,0.405504]
[1764168007446,0.4568,2942.6,2941.7,0.09975]
[1764168008167,0.4568,2942.6,2941.3,0.72559411]
[1764168008481,0.4568,2942.6,2941.5,0.09975]
[1764168008656,0.6758,2942.6,2941.7,0.09975]
[1764168008857,0.6758,2942.6,2941.9,0.72559411]
[1764168009173,0.1878,2943.0,2941.6,0.405504]
[1764168009345,0.4568,2942.9,2941.9,0.405504]
[1764168009550,0.1878,2943.3,2942.4,0.405504]
[1764168009901,0.1957,2944.6,2943.2,0.1472]
[1764168010185,0.6525,2945.1,2944.2,0.09975]
[1764168010386,0.6525,2945.4,2944.5,0.09975]
[1764168010594,0.6525,2945.4,2944.3,0.405504]
[1764168010595,0.1957,2946.5,2945.1,0.72559411]
[1764168010752,0.4568,2946.1,2945.1,0.405504]
[1764168010951,0.4568,2946.1,2944.9,6.79140208]
[1764168011253,0.219,2946.0,2944.9,6.79140208]
[1764168011455,0.6525,2945.9,2944.8,3.49555484]
[1764168011655,0.1957,2944.9,2944.4,3.39626519]
[1764168011855,0.4568,2945.3,2944.4,6.79254286]
[1764168012074,0.4568,2945.3,2944.4,6.89229286]
[1764168012244,0.219,2945.6,2944.4,6.89229286]
[1764168012245,0.4568,2945.6,2944.6,0.72559411]
[1764168012447,0.4568,2945.6,2944.7,0.405504]
[1764168012654,0.4568,2945.6,2944.0,3.39673541]
[1764168012655,0.1957,2944.7,2944.1,0.72559411]
[1764168012857,0.219,2945.2,2944.1,0.72559411]
[1764168013085,0.4568,2945.5,2944.4,6.79255534]
[1764168013284,0.4568,2945.5,2944.8,0.09975]
[1764168013579,0.1957,2945.9,2944.5,0.405504]
[1764168013796,0.4568,2945.7,2944.4,6.89230534]
[1764168013946,0.4568,2945.7,2944.4,11.02434354]
[1764168014145,0.6768,2945.7,2944.4,0.72559411]
[1764168014590,0.4709,2945.6,2944.4,0.72559411]
[1764168014765,0.4709,2945.6,2944.1,6.79314772]
[1764168015079,0.4709,2945.6,2944.2,0.405504]
[1764168015267,0.6909,2945.6,2944.6,0.09975]
[1764168015469,0.4709,2945.6,2944.1,6.79314772]
[1764168015672,1.41649411,2945.5,2943.9,0.1906]
[1764168015871,0.405504,2945.3,2943.2,9.84469354]
[1764168016184,0.1841,2944.0,2943.2,3.54482183]
[1764168016407,0.1841,2945.0,2943.3,0.09975]
[1764168016589,0.1841,2944.2,2942.9,0.09975]
[1764168016886,0.405504,2944.1,2942.4,0.09975]
[1764168017181,0.72559411,2943.9,2942.2,3.39880461]
[1764168017355,1.11358115,2943.8,2942.2,3.39880461]
[1764168017555,0.22,2943.7,2942.4,0.09975]
[1764168017755,0.6909,2943.7,2942.4,0.09975]
[1764168017984,0.6909,2943.7,2942.1,3.39891808]
[1764168018150,0.1841,2942.5,2942.1,3.39891808]
[1764168018503,0.1841,2942.5,2941.8,3.39927935]
[1764168018685,0.4709,2942.4,2941.3,0.1834]
[1764168018881,0.1289,2941.9,2941.1,3.4998384]
[1764168019072,0.1289,2941.9,2941.1,6.8999268]
[1764168019270,0.1841,2942.5,2941.7,0.09975]
[1764168020081,0.1833,2942.5,2941.7,0.09975]
[1764168020493,0.1289,2943.1,2941.9,0.405504]
[1764168020679,0.1841,2943.4,2942.2,0.405504]
[1764168020880,0.1841,2943.4,2942.5,0.09975]
[1764168021083,0.1841,2943.4,2942.6,10.19506557]
[1764168021283,0.1841,2943.4,2942.6,3.39835519]
[1764168021489,0.4709,2943.3,2941.8,4.26919965]
[1764168021719,0.4709,2943.3,2942.0,0.72559411]
[1764168021905,0.74499337,2943.2,2942.0,0.82534411]
[1764168022103,0.4709,2943.3,2942.2,0.09975]
[1764168022303,0.4709,2943.2,2942.1,0.28315]
[1764168022768,0.4709,2943.7,2942.4,0.09975]
[1764168023102,0.4709,2943.7,2942.8,10.19437269]
[1764168023328,0.71702753,2945.0,2943.7,0.405504]
[1764168023623,0.4709,2945.6,2944.3,0.09975]
[1764168023770,3.5784906,2946.1,2944.4,0.405504]
[1764168023771,0.4709,2945.9,2944.4,0.405504]
[1764168023966,0.1841,2946.4,2945.0,0.405504]
[1764168024172,0.1841,2946.4,2944.9,8.92934837]
[1764168024173,0.1841,2946.4,2945.2,0.09975]
[1764168024372,0.1841,2946.4,2945.1,0.22]
[1764168024373,0.1841,2946.4,2945.4,0.09975]
[1764168024630,0.1841,2947.1,2945.8,8.92934837]
[1764168024780,0.4709,2946.8,2945.9,0.09975]
[1764168024972,0.4709,2946.8,2946.0,6.78886624]
[1764168025776,0.4709,2946.8,2945.8,3.49441358]
[1764168026099,0.4709,2946.8,2945.8,6.78932716]
[1764168026915,0.4709,2946.8,2945.8,10.18399074]
[1764168027230,0.1841,2947.1,2945.8,6.78932716]
[1764168027374,0.4709,2946.7,2945.8,3.39466358]
[1764168027734,0.4709,2946.7,2945.8,6.78932716]
[1764168028702,0.1841,2947.1,2946.0,0.09975]
[1764168028943,0.655,2947.1,2946.0,0.09975]
[1764168029242,0.655,2947.1,2946.1,6.78863582]
[1764168029606,0.4709,2947.9,2946.2,0.4645]
[1764168029852,0.002,2946.7,2946.3,0.72559411]
[1764168030015,0.002,2946.7,2946.4,0.870004]
[1764168030210,0.002,2946.7,2946.6,0.09975]
[1764168030409,0.002,2946.7,2946.3,0.82534411]
[1764168030610,0.002,2946.7,2945.5,0.22]
[1764168030611,0.4729,2946.7,2945.5,0.22]
[1764168030811,0.4729,2946.7,2945.8,0.09975]
[1764168031011,0.002,2946.7,2945.9,0.405504]
[1764168031212,0.002,2946.7,2946.6,0.1834]
[1764168031425,0.002,2946.7,2946.5,0.09975]
[1764168031625,0.002,2946.7,2946.5,0.4645]
[1764168031837,0.002,2946.7,2946.1,1.19009411]
[1764168032123,0.002,2946.7,2946.6,0.09975]
[1764168032321,0.002,2946.7,2946.6,0.505254]
[1764168032511,0.002,2946.7,2946.6,0.870004]
[1764168032708,0.002,2946.7,2946.6,0.969754]
[1764168033136,0.002,2946.7,2946.6,5.08909004]
[1764168033549,0.002,2946.7,2946.6,5.93738538]
[1764168033844,0.002,2946.7,2946.6,4.11933604]
[1764168034033,0.002,2946.7,2946.2,0.09975]
[1764168034236,0.002,2946.7,2946.1,3.39431791]
[1764168034409,0.002,2946.7,2946.1,6.88838582]
[1764168034743,0.002,2946.7,2946.1,3.39431791]
[1764168034954,0.002,2946.7,2945.7,0.4645]
[1764168035122,3.39385711,2946.5,2945.2,6.7907103]
[1764168035343,0.38647571,2946.4,2945.3,0.22]
[1764168035575,3.86657668,2946.7,2945.5,0.09975]
[1764168035775,0.4729,2946.7,2945.6,0.22]
[1764168035943,0.4729,2946.7,2945.4,0.09975]
[1764168035944,0.4709,2946.6,2945.4,0.09975]
[1764168036151,0.4709,2946.6,2945.4,0.22]
[1764168036469,0.38665672,2946.5,2945.4,0.22]
[1764168036633,0.002,2946.7,2945.5,1.19009411]
[1764168036838,0.002,2946.7,2946.0,0.09975]
[1764168037163,0.002,2946.7,2946.1,6.78863582]
[1764168037364,0.4729,2946.7,2946.0,0.22]
[1764168037676,0.002,2946.7,2946.0,0.22]
[1764168038037,0.002,2946.7,2946.1,0.1834]
[1764168038281,0.002,2946.7,2946.0,0.22]
[1764168038783,0.4729,2946.7,2945.9,3.39445779]
[1764168039141,0.4729,2946.7,2945.9,6.78900614]
[1764168039336,3.86654289,2946.7,2945.9,3.39445779]
[1764168039543,3.86654289,2946.7,2945.6,3.39489407]
[1764168039544,0.38665429,2946.6,2945.6,3.39489407]
[1764168039785,0.85755429,2946.6,2945.6,6.78978814]
[1764168039970,0.85755429,2946.6,2945.6,6.88953814]
[1764168040174,0.85755429,2946.6,2945.6,10.28443221]
[1764168040482,0.4709,2946.6,2945.7,0.22]
[1764168040667,0.002,2946.7,2945.7,0.22]
[1764168040873,0.002,2946.7,2945.8,0.09975]
[1764168041510,0.002,2946.7,2945.9,6.7890967]
[1764168041644,0.4729,2946.7,2945.4,3.3951246]
[1764168041987,0.4709,2946.6,2945.5,1.06510657]
[1764168042187,0.4709,2946.6,2945.4,3.3951246]
[1764168042493,0.4709,2946.6,2945.2,0.22]
[1764168042650,0.1841,2945.5,2944.8,6.7916327]
[1764168042846,0.1841,2945.5,2944.9,1.42675738]
[1764168043050,0.4709,2945.4,2944.2,3.39650838]
[1764168043373,0.4709,2945.4,2944.2,6.79301676]
[1764168043542,0.4709,2945.4,2944.3,0.31975]
[1764168043742,0.4709,2945.4,2944.3,1.41009411]
[1764168044043,0.4709,2945.4,2944.4,0.31975]
[1764168044442,0.4709,2945.4,2944.4,0.09975]
[1764168044646,0.1841,2945.5,2944.5,0.7191]
[1764168044958,0.6391,2945.8,2944.9,0.09975]
[1764168045172,0.6391,2945.8,2944.9,0.31975]
[1764168045479,0.6391,2945.8,2945.0,3.39558573]
[1764168045652,0.4586,2945.7,2944.8,3.39581635]
[1764168045862,0.86196793,2945.7,2944.5,3.39608279]
[1764168046043,0.86196793,2945.7,2944.6,0.72559411]
[1764168046244,0.4586,2945.6,2944.6,0.72559411]
[1764168046877,0.1357,2944.7,2944.5,3.39608279]
[1764168047073,0.1357,2944.7,2943.7,10.1912559]
[1764168047274,0.1357,2944.7,2943.8,0.22]
[1764168047517,0.4586,2944.9,2944.1,0.72559411]
[1764168047813,0.1357,2945.0,2944.1,0.82534411]
[1764168047983,0.1357,2945.0,2944.1,1.04534411]
[1764168048176,0.1357,2945.0,2944.1,1.24314411]
[1764168048375,0.4586,2945.5,2944.4,0.09975]
[1764168048612,0.4586,2945.5,2944.4,0.31975]
[1764168048999,1.36469411,2945.8,2944.6,0.09975]
[1764168049180,0.6391,2945.8,2944.6,0.4991]
[1764168049374,0.4586,2946.3,2944.8,0.72559411]
[1764168049616,0.4586,2946.3,2945.3,0.09975]
[1764168049817,0.002,2946.4,2945.6,0.09975]
[1764168050116,0.002,2946.4,2945.5,0.4991]
[1764168050362,0.002,2946.4,2946.0,0.09975]
[1764168050679,0.002,2946.4,2946.0,0.59885]
[1764168050880,0.002,2946.4,2946.1,0.1978]
[1764168051188,0.002,2946.4,2946.1,0.29755]
[1764168051381,0.002,2946.4,2946.1,0.79665]
[1764168051585,0.002,2946.4,2946.2,6.7884054]
[1764168051788,0.002,2946.4,2946.2,7.2875054]
[1764168052087,0.4586,2946.3,2945.9,3.39449126]
[1764168052287,0.4586,2946.3,2945.6,0.94559411]
[1764168052500,0.4586,2946.3,2945.5,6.79001866]
[1764168053685,0.4586,2946.3,2945.1,3.39547044]
[1764168053686,3.85276298,2946.3,2945.1,3.39547044]
[1764168053885,0.3854763,2946.2,2945.1,10.48396132]
[1764168054098,0.4586,2946.3,2945.1,10.48396132]
[1764168054285,0.002,2946.4,2945.2,0.7191]
[1764168054508,0.002,2946.4,2945.3,0.09975]
[1764168054676,3.85461334,2946.4,2945.2,0.94559411]
[1764168055082,0.4586,2946.3,2945.2,0.94559411]
[1764168055289,0.4586,2946.3,2945.3,0.09975]
[1764168055597,0.002,2946.4,2945.6,0.09975]
[1764168055796,0.002,2946.4,2945.7,6.78955766]
[1764168056108,0.002,2946.4,2945.7,10.50408649]
[1764168056311,0.002,2946.4,2945.8,1.22469411]
[1764168056618,0.002,2946.4,2946.0,0.09975]
[1764168056791,0.002,2946.4,2946.3,0.09975]
[1764168057109,0.002,2946.4,2946.1,0.22]
[1764168057479,0.002,2946.4,2946.1,0.9169]
[1764168057675,0.002,2946.4,2946.2,0.09975]
[1764168057912,0.002,2946.4,2946.3,3.49383749]
[1764168058116,0.002,2946.4,2946.3,4.67983513]
[1764168058429,0.72891186,2948.0,2946.3,5.90452924]
[1764168058596,0.10649126,2948.1,2947.6,0.72559411]
[1764168058796,0.10649126,2948.1,2947.5,0.09975]
[1764168059196,0.10649126,2948.1,2947.6,0.22]
[1764168059390,0.10649126,2948.1,2947.5,0.09975]
[1764168059729,0.10649126,2948.1,2947.6,0.22]
[1764168059892,0.10649126,2948.1,2947.7,10.17742644]
[1764168060397,0.10649126,2948.1,2947.8,1.04534411]
[1764168060636,0.10649126,2948.1,2947.8,1.54444411]
[1764168060929,0.10649126,2948.1,2947.9,0.09975]
[1764168061496,0.10649126,2948.1,2948.0,0.4991]
[1764168061732,0.10649126,2948.1,2947.9,0.09975]
[1764168061933,0.10649126,2948.1,2948.0,3.39213025]
[1764168062097,0.10649126,2948.1,2947.8,0.72559411]
[1764168062296,0.10649126,2948.1,2947.9,0.22]
[1764168062696,0.10649126,2948.1,2948.0,0.22]
[1764168062927,0.10649126,2948.1,2947.9,0.22]
[1764168063336,0.10649126,2948.1,2948.0,0.4991]
[1764168063504,0.10649126,2948.1,2948.0,0.59885]
[1764168063848,0.10649126,2948.1,2948.0,3.99098025]
[1764168064136,0.10649126,2948.1,2948.0,3.61213025]
[1764168064307,0.10649126,2948.1,2948.0,3.71188025]
[1764168064511,0.10649126,2948.1,2948.0,12.09005113]
[1764168064742,0.10649126,2948.1,2948.0,13.22114924]
[1764168064950,0.10649126,2948.1,2948.0,13.00114924]
[1764168065116,0.10649126,2948.1,2948.0,5.83570495]
[1764168065989,0.10649126,2948.1,2948.0,13.22114924]
[1764168066166,0.10649126,2948.1,2948.0,5.61570495]
[1764168066484,0.1805,2950.2,2948.0,5.61570495]
[1764168066485,0.1805,2950.2,2949.0,0.405504]
[1764168066789,0.4652,2951.6,2950.1,0.1352]
[1764168066935,0.1848,2950.9,2949.2,7.38544429]
[1764168067132,0.1848,2950.9,2949.2,0.405504]
[1764168067369,0.4652,2950.8,2949.5,0.09975]
[1764168067572,0.4652,2950.8,2949.0,0.09975]
[1764168067771,0.221,2950.7,2949.1,0.6823]
[1764168067977,3.38914119,2950.6,2948.9,6.78218996]
[1764168068188,1.28550823,2950.5,2948.9,6.88193996]
[1764168068390,1.75070823,2950.5,2949.2,0.09975]
[1764168068678,1.75070823,2950.5,2950.4,0.1405]
[1764168068679,0.72559411,2950.5,2950.4,0.1405]
[1764168068880,0.1848,2951.3,2950.3,7.38544429]
[1764168069035,0.65,2951.3,2950.3,0.09975]
[1764168069243,0.65,2951.3,2949.9,0.4898]
[1764168069569,0.4652,2951.2,2950.0,0.405504]
[1764168069772,0.1848,2951.9,2950.6,0.1]
[1764168069968,0.4652,2951.8,2950.6,1.13109811]
[1764168070136,0.1848,2951.9,2950.6,0.72559411]
[1764168070338,0.4652,2951.8,2950.3,0.72559411]
[1764168070564,0.4652,2951.8,2950.4,0.995304]
[1764168070747,0.4652,2951.8,2950.4,0.5898]
[1764168070960,0.1848,2951.9,2950.3,0.72559411]
[1764168070961,0.1848,2951.9,2950.5,0.1]
[1764168071168,0.4652,2951.8,2951.0,0.0008]
[1764168071358,0.4652,2951.8,2950.5,0.1]
[1764168071555,0.4652,2951.8,2950.4,0.4898]
[1764168071764,0.4652,2951.8,2950.8,0.1]
[1764168072099,0.4652,2951.8,2950.1,0.598004]
[1764168072100,7.38544429,2951.3,2949.0,6.92245998]
[1764168072245,0.1848,2950.1,2949.0,3.39097999]
[1764168072449,0.6917904,2950.0,2949.0,7.38544429]
[1764168072638,0.4652,2951.1,2949.9,0.0993]
[1764168072999,0.4652,2951.1,2949.1,1.22834443]
[1764168073146,0.223,2951.0,2949.6,0.0993]
[1764168073348,1.13109811,2950.5,2948.3,0.1925]
[1764168073561,6.116937,2950.2,2948.2,0.0993]
[1764168073789,7.38544429,2950.6,2947.9,0.0993]
[1764168073790,1.13109811,2949.9,2947.9,0.0993]
[1764168074085,0.72559411,2949.6,2947.9,3.491529]
[1764168074258,0.72559411,2949.6,2947.8,3.39232561]
[1764168074459,5.343854,2949.4,2947.3,0.0993]
[1764168074768,0.4838,2949.3,2947.5,0.0993]
[1764168075092,0.4838,2949.3,2946.8,0.1322]
[1764168075093,0.72559411,2949.1,2946.8,0.1322]
[1764168075299,0.72559411,2948.8,2946.8,0.2315]
[1764168075498,0.223,2948.7,2946.5,0.1983]
[1764168075664,0.223,2948.7,2946.6,0.0993]
[1764168075665,3.887959,2948.4,2946.6,0.0993]
[1764168075998,0.223,2948.3,2947.2,0.0993]
[1764168076200,3.58600107,2948.3,2946.9,6.7867929]
[1764168076414,0.901,2948.3,2947.0,0.67867929]
[1764168076569,4.06981398,2948.3,2947.3,0.0993]
[1764168076894,0.4838,2948.2,2946.2,0.1983]
[1764168077099,0.223,2948.1,2946.2,0.1983]
[1764168077305,1.13109811,2947.7,2945.5,0.001]
[1764168077485,0.1942,2946.3,2945.5,0.001]
[1764168077684,0.4172,2946.3,2945.5,0.001]
[1764168077851,0.4838,2946.2,2945.5,0.001]
[1764168078057,0.223,2946.1,2945.5,0.001]
[1764168078286,0.4838,2946.0,2945.5,0.001]
[1764168078585,0.4172,2945.9,2945.5,0.001]
[1764168079088,0.4838,2945.8,2945.5,0.001]
[1764168079491,0.678,2947.3,2945.6,0.498]
[1764168079715,0.4838,2947.2,2946.1,0.0993]
[1764168079872,0.40709697,2947.1,2945.5,0.001]
[1764168080194,6.7865626,2947.0,2945.5,0.001]
[1764168080355,0.223,2946.9,2945.5,0.001]
[1764168080561,0.223,2946.8,2945.7,0.0993]
[1764168080757,0.223,2946.7,2945.5,0.001]
[1764168080955,0.223,2946.7,2945.5,0.68012458]
[1764168081276,0.4838,2946.6,2945.5,0.001]
[1764168081477,0.223,2946.5,2945.5,0.001]
[1764168081886,0.4838,2946.4,2945.5,0.001]
[1764168082085,10.18226247,2946.3,2945.5,0.001]
[1764168082271,0.4838,2946.2,2945.5,0.001]
[1764168082479,0.1942,2945.6,2945.5,0.001]
[1764168082707,0.1942,2945.6,2945.2,0.001]
[1764168082708,0.4172,2945.6,2945.2,0.001]
[1764168082887,0.4838,2945.5,2945.2,0.001]
[1764168083290,0.223,2945.4,2945.2,0.001]
[1764168083659,0.4838,2945.3,2945.2,0.001]
[1764168084085,3.87903987,2945.3,2945.2,0.001]
[1764168084276,8.74958945,2945.3,2944.9,0.001]
[1764168084482,8.74958945,2945.3,2943.1,3.39774834]
[1764168084483,0.72559411,2944.9,2943.3,3.39751339]
[1764168085000,0.4838,2944.8,2942.9,7.52161163]
[1764168085216,0.4838,2944.8,2943.0,0.0993]
[1764168085365,0.4838,2944.8,2942.9,10.19402628]
[1764168085567,0.4838,2944.7,2943.0,0.498]
[1764168085808,0.4838,2945.2,2943.6,0.0993]
[1764168086020,0.223,2944.8,2944.0,0.0993]
[1764168086317,0.4838,2945.2,2943.2,0.405504]
[1764168086318,0.223,2945.1,2944.3,0.0993]
[1764168086608,0.223,2945.1,2944.6,0.001]
[1764168086609,0.94859411,2945.1,2944.6,0.001]
[1764168086780,0.4838,2945.0,2944.6,0.001]
[1764168087602,0.72559411,2945.3,2944.6,0.001]
[1764168087808,0.4838,2945.5,2944.6,0.001]
[1764168088012,0.223,2945.2,2944.6,0.001]
[1764168088510,0.4838,2945.1,2944.6,0.001]
[1764168089106,0.223,2945.0,2944.6,0.001]
[1764168089713,4.60440344,2945.5,2944.6,0.001]
[1764168089881,0.223,2945.4,2944.6,0.001]
[1764168090076,0.4838,2945.4,2944.6,0.001]
[1764168090405,0.72559411,2945.2,2944.6,0.001]
[1764168090604,0.4838,2945.4,2944.6,0.001]
[1764168090902,0.223,2945.3,2944.6,0.001]
[1764168091111,0.91979411,2945.6,2944.6,0.001]
[1764168091298,0.1942,2945.6,2944.6,0.001]
[1764168091492,0.91979411,2945.6,2944.6,0.001]
[1764168091801,0.223,2945.5,2944.7,0.0993]
[1764168091987,0.223,2945.5,2944.6,0.001]
[1764168092315,3.3951246,2945.4,2944.6,3.397047]
[1764168092510,3.61801384,2945.5,2944.7,0.68924546]
[1764168092696,1.43239411,2945.4,2944.6,0.001]
[1764168093014,0.4838,2945.3,2944.6,0.001]
[1764168093213,0.72559411,2945.6,2944.6,0.001]
[1764168093413,0.72559411,2945.9,2944.8,0.0993]
[1764168093878,0.223,2945.8,2945.1,0.0993]
[1764168094076,0.1942,2946.4,2945.4,0.0993]
[1764168094331,0.223,2946.3,2945.3,0.405504]
[1764168094480,0.0012,2946.9,2945.8,0.0993]
[1764168094685,0.223,2946.8,2945.9,0.0993]
[1764168094914,0.0012,2946.9,2945.9,0.0993]
[1764168095080,0.223,2946.7,2945.5,0.0993]
[1764168095280,0.223,2946.7,2945.9,0.0993]
[1764168095612,0.223,2946.6,2945.9,0.0993]
[1764168095814,0.223,2946.6,2946.0,0.1983]
[1764168096381,0.223,2946.6,2946.1,6.78863582]
[1764168096776,3.8784488,2946.9,2946.1,6.78863582]
[1764168096777,0.485,2946.9,2946.1,6.78863582]
[1764168096983,0.223,2946.8,2946.1,6.78863582]
[1764168097212,0.223,2946.8,2946.1,3.39431791]
[1764168097527,0.0012,2946.9,2946.2,0.498]
[1764168097682,0.678,2946.8,2945.8,6.78932716]
[1764168098015,1.40359411,2946.8,2945.4,0.72559411]
[1764168098179,0.89106084,2946.7,2945.4,6.7902492]
[1764168098380,0.72559411,2946.5,2945.2,6.8900103]
[1764168098602,0.1942,2946.8,2945.3,1.22359411]
[1764168098802,0.94859411,2946.7,2945.5,0.0993]
[1764168098981,0.0012,2946.9,2945.8,0.0993]
[1764168099179,0.0012,2946.9,2946.2,0.0993]
[1764168099380,0.223,2946.8,2946.2,0.0993]
[1764168099790,0.4172,2946.8,2945.8,0.2976]
[1764168100604,0.4172,2946.8,2945.9,10.18364505]
[1764168100814,0.1942,2946.8,2945.9,6.7890967]
[1764168100989,0.223,2946.7,2945.9,6.7890967]
[1764168101401,0.7068,2946.7,2945.9,6.7890967]
[1764168101982,0.223,2946.6,2945.9,6.8883967]
[1764168102183,0.223,2946.6,2945.9,6.7890967]
[1764168102384,1.40359411,2946.8,2945.9,6.7890967]
[1764168102385,0.678,2946.8,2945.9,6.7890967]
[1764168102585,0.0012,2946.9,2946.1,0.0993]
[1764168102789,0.0012,2946.9,2946.5,0.0993]
[1764168103335,0.0012,2946.9,2946.5,0.5973]